[Event "Titled Tuesday Blitz February 14 Early 2023"]
[White "Hakobyan, Aram"]
[Black "Kovalenko, Igor"]
[WhiteFideId "13306677"]
[BlackFideId "14117908"]
[WhiteElo "2608"]
[BlackElo "2674"]
[Result "1/2-1/2"]
[Round "07"]
[TimeControl "180+2"]
[Date "2023.02.15"]
[WhiteClock "0:00:11"]
[BlackClock "0:00:18"]

1. d4 {[%clk 0:02:59]}  Nf6 {[%clk 0:02:59]} 2. Nf3 {[%clk 0:02:59]}  d5 {[%clk 0:02:59]} 3. c4 {[%clk 0:03:00]}  e6 {[%clk 0:02:59]} 4. Nc3 {[%clk 0:03:00]}  c6 {[%clk 0:02:59]} 5. Qd3 {[%clk 0:02:58]}  Nbd7 {[%clk 0:02:59]} 6. g3 {[%clk 0:02:58]}  b6 {[%clk 0:02:57]} 7. cxd5 {[%clk 0:02:52]}  cxd5 {[%clk 0:02:56]} 8. Bg2 {[%clk 0:02:51]}  Bb7 {[%clk 0:02:49]} 9. O-O {[%clk 0:02:50]}  Be7 {[%clk 0:02:49]} 10. Bf4 {[%clk 0:02:51]}  a6 {[%clk 0:02:49]} 11. Rac1 {[%clk 0:02:51]}  O-O {[%clk 0:02:49]} 12. a4 {[%clk 0:02:45]}  Rc8 {[%clk 0:02:48]} 13. Rfd1 {[%clk 0:02:40]}  h6 {[%clk 0:02:47]} 14. Ne5 {[%clk 0:02:32]}  Re8 {[%clk 0:02:21]} 15. h3 {[%clk 0:02:06]}  Bf8 {[%clk 0:02:16]} 16. g4 {[%clk 0:02:01]}  Nxe5 {[%clk 0:02:04]} 17. Bxe5 {[%clk 0:01:59]}  Nd7 {[%clk 0:02:05]} 18. Bf4 {[%clk 0:01:59]}  Qf6 {[%clk 0:01:57]} 19. Qg3 {[%clk 0:01:54]}  Bb4 {[%clk 0:01:52]} 20. h4 {[%clk 0:01:45]}  Qg6 {[%clk 0:01:49]} 21. h5 {[%clk 0:01:41]}  Qh7 {[%clk 0:01:49]} 22. Bd6 {[%clk 0:01:20]}  Bxc3 {[%clk 0:01:39]} 23. bxc3 {[%clk 0:01:16]}  Nf6 {[%clk 0:01:38]} 24. Rb1 {[%clk 0:00:33]}  Rc6 {[%clk 0:01:33]} 25. c4 {[%clk 0:00:32]}  Rxc4 {[%clk 0:01:11]} 26. Rxb6 {[%clk 0:00:30]}  Bc6 {[%clk 0:01:11]} 27. Rxa6 {[%clk 0:00:26]}  Qc2 {[%clk 0:01:06]} 28. Qd3 {[%clk 0:00:20]}  Bxa4 {[%clk 0:01:04]} 29. Qxc2 {[%clk 0:00:18]}  Bxc2 {[%clk 0:01:04]} 30. Rd2 {[%clk 0:00:17]}  Nxg4 {[%clk 0:01:04]} 31. Bf3 {[%clk 0:00:17]}  Nf6 {[%clk 0:01:04]} 32. Be5 {[%clk 0:00:17]}  Be4 {[%clk 0:01:01]} 33. Bxf6 {[%clk 0:00:16]}  Bxf3 {[%clk 0:01:01]} 34. Bxg7 {[%clk 0:00:14]}  Kxg7 {[%clk 0:00:58]} 35. exf3 {[%clk 0:00:15]}  Kf6 {[%clk 0:00:58]} 36. Ra7 {[%clk 0:00:01]}  Rg8+ {[%clk 0:00:57]} 37. Kf1 {[%clk 0:00:02]}  Rg5 {[%clk 0:00:56]} 38. Ke2 {[%clk 0:00:03]}  Rxh5 {[%clk 0:00:56]} 39. Ke3 {[%clk 0:00:04]}  Rf5 {[%clk 0:00:54]} 40. Rd3 {[%clk 0:00:04]}  h5 {[%clk 0:00:54]} 41. Ra8 {[%clk 0:00:04]}  Kg7 {[%clk 0:00:54]} 42. Ra1 {[%clk 0:00:04]}  Rg5 {[%clk 0:00:53]} 43. Rh1 {[%clk 0:00:04]}  Ra4 {[%clk 0:00:50]} 44. f4 {[%clk 0:00:04]}  Rf5 {[%clk 0:00:48]} 45. Rh4 {[%clk 0:00:04]}  Ra1 {[%clk 0:00:47]} 46. Ke2 {[%clk 0:00:04]}  Rg1 {[%clk 0:00:46]} 47. Rg3+ {[%clk 0:00:05]}  Rxg3 {[%clk 0:00:46]} 48. fxg3 {[%clk 0:00:06]}  Kf8 {[%clk 0:00:37]} 49. Kf3 {[%clk 0:00:05]}  Ke7 {[%clk 0:00:37]} 50. Rh1 {[%clk 0:00:05]}  Kd6 {[%clk 0:00:38]} 51. Ra1 {[%clk 0:00:04]}  Kc6 {[%clk 0:00:32]} 52. Rc1+ {[%clk 0:00:05]}  Kb6 {[%clk 0:00:32]} 53. Rb1+ {[%clk 0:00:05]}  Kc6 {[%clk 0:00:32]} 54. Rc1+ {[%clk 0:00:06]}  Kb5 {[%clk 0:00:32]} 55. Rc7 {[%clk 0:00:06]}  Rf6 {[%clk 0:00:32]} 56. Rc5+ {[%clk 0:00:05]}  Kb4 {[%clk 0:00:31]} 57. Rc7 {[%clk 0:00:06]}  Kb3 {[%clk 0:00:30]} 58. Rc6 {[%clk 0:00:03]}  Rh6 {[%clk 0:00:19]} 59. Rc7 {[%clk 0:00:04]}  f5 {[%clk 0:00:19]} 60. Rc6 {[%clk 0:00:04]}  Kb4 {[%clk 0:00:19]} 61. Ke3 {[%clk 0:00:04]}  Kb5 {[%clk 0:00:19]} 62. Rc5+ {[%clk 0:00:03]}  Kb6 {[%clk 0:00:19]} 63. Rc8 {[%clk 0:00:04]}  h4 {[%clk 0:00:18]} 64. gxh4 {[%clk 0:00:04]}  Rxh4 {[%clk 0:00:19]} 65. Re8 {[%clk 0:00:04]}  Rh6 {[%clk 0:00:19]} 66. Kd3 {[%clk 0:00:05]}  Kc7 {[%clk 0:00:19]} 67. Re7+ {[%clk 0:00:04]}  Kd6 {[%clk 0:00:19]} 68. Ra7 {[%clk 0:00:05]}  Rh3+ {[%clk 0:00:19]} 69. Ke2 {[%clk 0:00:06]}  Rc3 {[%clk 0:00:19]} 70. Ra6+ {[%clk 0:00:06]}  Rc6 {[%clk 0:00:19]} 71. Ra5 {[%clk 0:00:06]}  Ke7 {[%clk 0:00:20]} 72. Ra7+ {[%clk 0:00:07]}  Kf6 {[%clk 0:00:20]} 73. Ra8 {[%clk 0:00:07]}  Rb6 {[%clk 0:00:20]} 74. Rf8+ {[%clk 0:00:07]}  Kg6 {[%clk 0:00:20]} 75. Ra8 {[%clk 0:00:08]}  Kh5 {[%clk 0:00:20]} 76. Rg8 {[%clk 0:00:08]}  Kh4 {[%clk 0:00:20]} 77. Rg6 {[%clk 0:00:08]}  Kh5 {[%clk 0:00:20]} 78. Rg5+ {[%clk 0:00:08]}  Kh6 {[%clk 0:00:20]} 79. Rg8 {[%clk 0:00:09]}  Rb4 {[%clk 0:00:21]} 80. Ke3 {[%clk 0:00:09]}  Rb1 {[%clk 0:00:21]} 81. Ke2 {[%clk 0:00:05]}  Rb2+ {[%clk 0:00:21]} 82. Ke3 {[%clk 0:00:06]}  Rb3+ {[%clk 0:00:21]} 83. Ke2 {[%clk 0:00:06]}  Kh5 {[%clk 0:00:21]} 84. Rg5+ {[%clk 0:00:06]}  Kh4 {[%clk 0:00:22]} 85. Rg8 {[%clk 0:00:07]}  Rg3 {[%clk 0:00:20]} 86. Re8 {[%clk 0:00:07]}  Rg6 {[%clk 0:00:19]} 87. Kf3 {[%clk 0:00:07]}  Rg3+ {[%clk 0:00:19]} 88. Ke2 {[%clk 0:00:07]}  Kg4 {[%clk 0:00:18]} 89. Rxe6 {[%clk 0:00:06]}  Kxf4 {[%clk 0:00:18]} 90. Re5 {[%clk 0:00:07]}  Rg2+ {[%clk 0:00:19]} 91. Kd3 {[%clk 0:00:06]}  Rg3+ {[%clk 0:00:18]} 92. Ke2 {[%clk 0:00:06]}  Rg5 {[%clk 0:00:18]} 93. Rxd5 {[%clk 0:00:07]}  Kg3 {[%clk 0:00:17]} 94. Re5 {[%clk 0:00:06]}  Kf4 {[%clk 0:00:18]} 95. Re8 {[%clk 0:00:06]}  Rg2+ {[%clk 0:00:17]} 96. Kd3 {[%clk 0:00:06]}  Rg1 {[%clk 0:00:17]} 97. Kd2 {[%clk 0:00:07]}  Rg2+ {[%clk 0:00:16]} 98. Kd3 {[%clk 0:00:08]}  Rg1 {[%clk 0:00:16]} 99. Kc2 {[%clk 0:00:08]}  Kf3 {[%clk 0:00:15]} 100. d5 {[%clk 0:00:09]}  f4 {[%clk 0:00:16]} 101. d6 {[%clk 0:00:09]}  Rg7 {[%clk 0:00:16]} 102. Re7 {[%clk 0:00:09]}  Rg6 {[%clk 0:00:16]} 103. d7 {[%clk 0:00:10]}  Rd6 {[%clk 0:00:16]} 104. Kc3 {[%clk 0:00:10]}  Kg2 {[%clk 0:00:16]} 105. Rg7+ {[%clk 0:00:10]}  Kf2 {[%clk 0:00:16]} 106. Kc4 {[%clk 0:00:10]}  f3 {[%clk 0:00:16]} 107. Kc5 {[%clk 0:00:11]}  Rd1 {[%clk 0:00:14]} 108. Kc6 {[%clk 0:00:10]}  Ke2 {[%clk 0:00:14]} 109. Re7+ {[%clk 0:00:11]}  Kf1 {[%clk 0:00:15]} 110. Re6 {[%clk 0:00:11]}  Rxd7 {[%clk 0:00:15]} 111. Kxd7 {[%clk 0:00:11]}  f2 {[%clk 0:00:15]} 112. Kd6 {[%clk 0:00:11]}  Kg1 {[%clk 0:00:15]} 113. Rg6+ {[%clk 0:00:11]}  Kh2 {[%clk 0:00:16]} 114. Rh6+ {[%clk 0:00:11]}  Kg2 {[%clk 0:00:17]} 115. Rg6+ {[%clk 0:00:12]}  Kh2 {[%clk 0:00:17]} 116. Rf6 {[%clk 0:00:12]}  Kg2 {[%clk 0:00:18]} 117. Kd5 {[%clk 0:00:10]}  f1=Q {[%clk 0:00:17]} 118. Rxf1 {[%clk 0:00:11]}  Kxf1 {[%clk 0:00:18]} 1/2-1/2


[Site "https://www.chess.com"]

[Event "Titled Tuesday Blitz February 14 Early 2023"]
[White "Makhnev, Denis"]
[Black "Indjic, Aleksandar"]
[WhiteFideId "13707647"]
[BlackFideId "911925"]
[WhiteElo "2483"]
[BlackElo "2618"]
[Result "0-1"]
[Round "07"]
[TimeControl "180+2"]
[Date "2023.02.15"]
[WhiteClock "0:00:07"]
[BlackClock "0:00:16"]

1. d4 {[%clk 0:03:00]}  Nf6 {[%clk 0:02:56]} 2. c4 {[%clk 0:03:01]}  e6 {[%clk 0:02:56]} 3. Nf3 {[%clk 0:03:01]}  c5 {[%clk 0:02:56]} 4. d5 {[%clk 0:03:01]}  d6 {[%clk 0:02:56]} 5. Nc3 {[%clk 0:03:01]}  exd5 {[%clk 0:02:57]} 6. cxd5 {[%clk 0:03:01]}  g6 {[%clk 0:02:58]} 7. g3 {[%clk 0:03:02]}  Bg7 {[%clk 0:02:58]} 8. Bg2 {[%clk 0:03:03]}  O-O {[%clk 0:02:58]} 9. O-O {[%clk 0:03:04]}  Re8 {[%clk 0:02:59]} 10. Bf4 {[%clk 0:03:04]}  Na6 {[%clk 0:02:59]} 11. Re1 {[%clk 0:02:59]}  Bg4 {[%clk 0:02:58]} 12. Qb3 {[%clk 0:02:56]}  Rb8 {[%clk 0:02:42]} 13. h3 {[%clk 0:02:31]}  Bxf3 {[%clk 0:02:41]} 14. Bxf3 {[%clk 0:02:32]}  b5 {[%clk 0:02:35]} 15. a4 {[%clk 0:02:28]}  bxa4 {[%clk 0:02:20]} 16. Qxa4 {[%clk 0:02:26]}  Nb4 {[%clk 0:02:19]} 17. Red1 {[%clk 0:01:59]}  a6 {[%clk 0:02:18]} 18. Rd2 {[%clk 0:01:24]}  h6 {[%clk 0:02:16]} 19. h4 {[%clk 0:01:24]}  Qc7 {[%clk 0:01:46]} 20. Rc1 {[%clk 0:00:38]}  Nd7 {[%clk 0:01:09]} 21. Nd1 {[%clk 0:00:28]}  Ne5 {[%clk 0:01:04]} 22. Bg2 {[%clk 0:00:27]}  Ng4 {[%clk 0:00:53]} 23. Bh3 {[%clk 0:00:27]}  Nf6 {[%clk 0:00:51]} 24. Bg2 {[%clk 0:00:11]}  Ne4 {[%clk 0:00:43]} 25. Bxe4 {[%clk 0:00:10]}  Rxe4 {[%clk 0:00:44]} 26. Ne3 {[%clk 0:00:09]}  Qe7 {[%clk 0:00:43]} 27. Nc4 {[%clk 0:00:08]}  Rxf4 {[%clk 0:00:41]} 28. gxf4 {[%clk 0:00:08]}  Qxh4 {[%clk 0:00:41]} 29. Qd7 {[%clk 0:00:08]}  Rd8 {[%clk 0:00:39]} 30. Qc7 {[%clk 0:00:06]}  Bf8 {[%clk 0:00:33]} 31. Ne3 {[%clk 0:00:06]}  Re8 {[%clk 0:00:29]} 32. Rc4 {[%clk 0:00:06]}  Rxe3 {[%clk 0:00:27]} 33. fxe3 {[%clk 0:00:06]}  Qe1+ {[%clk 0:00:27]} 34. Kg2 {[%clk 0:00:06]}  Qxd2 {[%clk 0:00:28]} 35. Kf2 {[%clk 0:00:05]}  Nd3+ {[%clk 0:00:25]} 36. Kf3 {[%clk 0:00:04]}  Nxb2 {[%clk 0:00:24]} 37. Re4 {[%clk 0:00:04]}  Qxd5 {[%clk 0:00:15]} 38. Qc8 {[%clk 0:00:04]}  f5 {[%clk 0:00:15]} 39. Qe6+ {[%clk 0:00:04]}  Qxe6 {[%clk 0:00:15]} 40. Rxe6 {[%clk 0:00:05]}  Kf7 {[%clk 0:00:16]} 41. Rxg6 {[%clk 0:00:06]}  Kxg6 {[%clk 0:00:16]} 42. e4 {[%clk 0:00:07]}  a5 {[%clk 0:00:16]} 0-1


[Site "https://www.chess.com"]

[Event "Titled Tuesday Blitz February 14 Early 2023"]
[White "Lenderman, Aleksandr"]
[Black "Bacrot, Etienne"]
[WhiteFideId "2021285"]
[BlackFideId "605506"]
[WhiteElo "2572"]
[BlackElo "2667"]
[Result "0-1"]
[Round "07"]
[TimeControl "180+2"]
[Date "2023.02.15"]
[WhiteClock "0:02:10"]
[BlackClock "0:01:27"]

1. Nf3 {[%clk 0:03:00]}  d5 {[%clk 0:02:59]} 2. e3 {[%clk 0:03:00]}  Nf6 {[%clk 0:02:59]} 3. c4 {[%clk 0:03:00]}  e6 {[%clk 0:02:58]} 4. b3 {[%clk 0:03:01]}  b6 {[%clk 0:02:58]} 5. Bb2 {[%clk 0:03:01]}  Bb7 {[%clk 0:02:58]} 6. Nc3 {[%clk 0:03:00]}  Nbd7 {[%clk 0:02:58]} 7. cxd5 {[%clk 0:02:54]}  exd5 {[%clk 0:02:58]} 8. g3 {[%clk 0:02:51]}  d4 {[%clk 0:02:56]} 9. exd4 {[%clk 0:02:51]}  Qe7+ {[%clk 0:02:48]} 10. Be2 {[%clk 0:02:41]}  Bxf3 {[%clk 0:02:47]} 11. O-O {[%clk 0:02:41]}  Bxe2 {[%clk 0:02:47]} 12. Nxe2 {[%clk 0:02:42]}  Qd8 {[%clk 0:02:43]} 13. Nf4 {[%clk 0:02:39]}  Be7 {[%clk 0:02:42]} 14. Qf3 {[%clk 0:02:38]}  O-O {[%clk 0:02:42]} 15. Rac1 {[%clk 0:02:38]}  Bd6 {[%clk 0:02:41]} 16. Nd3 {[%clk 0:02:39]}  Re8 {[%clk 0:02:39]} 17. Rfe1 {[%clk 0:02:39]}  Rxe1+ {[%clk 0:02:34]} 18. Rxe1 {[%clk 0:02:38]}  Qf8 {[%clk 0:02:34]} 19. Ne5 {[%clk 0:02:39]}  Re8 {[%clk 0:02:30]} 20. Qf5 {[%clk 0:02:25]}  Nb8 {[%clk 0:02:19]} 21. Re3 {[%clk 0:02:21]}  Nd5 {[%clk 0:02:10]} 22. Rf3 {[%clk 0:02:20]}  f6 {[%clk 0:01:48]} 23. Nc4 {[%clk 0:02:13]}  Qf7 {[%clk 0:01:42]} 24. Ne3 {[%clk 0:02:13]}  c6 {[%clk 0:01:38]} 25. h4 {[%clk 0:02:12]}  Nd7 {[%clk 0:01:34]} 26. Kg2 {[%clk 0:02:12]}  Nf8 {[%clk 0:01:31]} 27. h5 {[%clk 0:02:09]}  Ne6 {[%clk 0:01:29]} 28. Nxd5 {[%clk 0:02:09]}  cxd5 {[%clk 0:01:29]} 29. Qxd5 {[%clk 0:02:10]}  Nf4+ {[%clk 0:01:27]} 0-1


[Site "https://www.chess.com"]

[Event "Titled Tuesday Blitz February 14 Early 2023"]
[White "Ter-Sahakyan, Samvel"]
[Black "Van Foreest, Jorden"]
[WhiteFideId "13302531"]
[BlackFideId "1039784"]
[WhiteElo "2617"]
[BlackElo "2689"]
[Result "1-0"]
[Round "07"]
[TimeControl "180+2"]
[Date "2023.02.15"]
[WhiteClock "0:00:13"]
[BlackClock "0:00:02"]

1. d4 {[%clk 0:03:00]}  d5 {[%clk 0:02:58]} 2. c4 {[%clk 0:03:00]}  c6 {[%clk 0:02:58]} 3. Nf3 {[%clk 0:02:59]}  Nf6 {[%clk 0:02:59]} 4. Qc2 {[%clk 0:02:58]}  dxc4 {[%clk 0:02:56]} 5. Qxc4 {[%clk 0:02:57]}  Bf5 {[%clk 0:02:56]} 6. g3 {[%clk 0:02:54]}  e6 {[%clk 0:02:53]} 7. Bg2 {[%clk 0:02:54]}  Be7 {[%clk 0:02:54]} 8. O-O {[%clk 0:02:54]}  O-O {[%clk 0:02:54]} 9. e3 {[%clk 0:02:45]}  a5 {[%clk 0:02:19]} 10. Nc3 {[%clk 0:02:38]}  a4 {[%clk 0:02:18]} 11. a3 {[%clk 0:02:35]}  Nbd7 {[%clk 0:02:17]} 12. Qe2 {[%clk 0:02:33]}  h6 {[%clk 0:02:12]} 13. e4 {[%clk 0:02:23]}  Bh7 {[%clk 0:02:11]} 14. Bf4 {[%clk 0:02:19]}  Re8 {[%clk 0:02:09]} 15. Rfe1 {[%clk 0:02:16]}  Qb6 {[%clk 0:02:08]} 16. Rad1 {[%clk 0:02:13]}  Bf8 {[%clk 0:01:53]} 17. h3 {[%clk 0:02:12]}  Qa6 {[%clk 0:01:51]} 18. Qd2 {[%clk 0:01:46]}  Nb6 {[%clk 0:01:47]} 19. Qc1 {[%clk 0:01:45]}  Nc4 {[%clk 0:01:42]} 20. Ne5 {[%clk 0:01:29]}  Na5 {[%clk 0:01:34]} 21. g4 {[%clk 0:01:25]}  Rad8 {[%clk 0:01:26]} 22. g5 {[%clk 0:01:16]}  Nb3 {[%clk 0:01:19]} 23. Qe3 {[%clk 0:01:14]}  hxg5 {[%clk 0:01:18]} 24. Bxg5 {[%clk 0:01:14]}  Qa7 {[%clk 0:01:12]} 25. Bxf6 {[%clk 0:00:52]}  gxf6 {[%clk 0:01:12]} 26. Ng4 {[%clk 0:00:52]}  Bg7 {[%clk 0:01:10]} 27. e5 {[%clk 0:00:49]}  fxe5 {[%clk 0:01:05]} 28. Qg5 {[%clk 0:00:42]}  Nxd4 {[%clk 0:00:40]} 29. Nf6+ {[%clk 0:00:29]}  Kh8 {[%clk 0:00:40]} 30. Qh4 {[%clk 0:00:24]}  Bxf6 {[%clk 0:00:37]} 31. Qxf6+ {[%clk 0:00:25]}  Kg8 {[%clk 0:00:37]} 32. Rxe5 {[%clk 0:00:25]}  Bg6 {[%clk 0:00:22]} 33. h4 {[%clk 0:00:13]}  Qb8 {[%clk 0:00:14]} 34. h5 {[%clk 0:00:13]}  Bf5 {[%clk 0:00:02]} 35. h6 {[%clk 0:00:13]} 1-0


[Site "https://www.chess.com"]

[Event "Titled Tuesday Blitz February 14 Early 2023"]
[White "Timofeev, Artyom"]
[Black "Makarian, Rudik"]
[WhiteFideId "4140419"]
[BlackFideId "44105681"]
[WhiteElo "2567"]
[BlackElo "2545"]
[Result "1/2-1/2"]
[Round "07"]
[TimeControl "180+2"]
[Date "2023.02.15"]
[WhiteClock "0:00:19"]
[BlackClock "0:00:29"]

1. e4 {[%clk 0:03:00]}  c5 {[%clk 0:02:58]} 2. Nf3 {[%clk 0:03:00]}  e6 {[%clk 0:02:57]} 3. d4 {[%clk 0:02:59]}  cxd4 {[%clk 0:02:58]} 4. Nxd4 {[%clk 0:02:59]}  Nc6 {[%clk 0:02:57]} 5. Nc3 {[%clk 0:02:59]}  Nf6 {[%clk 0:02:56]} 6. Ndb5 {[%clk 0:02:59]}  d6 {[%clk 0:02:55]} 7. Bf4 {[%clk 0:02:55]}  e5 {[%clk 0:02:55]} 8. Bg5 {[%clk 0:02:56]}  a6 {[%clk 0:02:55]} 9. Na3 {[%clk 0:02:55]}  b5 {[%clk 0:02:55]} 10. Nd5 {[%clk 0:02:55]}  Be7 {[%clk 0:02:56]} 11. Bxf6 {[%clk 0:02:55]}  Bxf6 {[%clk 0:02:56]} 12. c4 {[%clk 0:02:55]}  b4 {[%clk 0:02:56]} 13. Nc2 {[%clk 0:02:54]}  a5 {[%clk 0:02:57]} 14. Qf3 {[%clk 0:02:53]}  Bg5 {[%clk 0:02:51]} 15. h4 {[%clk 0:02:53]}  Bh6 {[%clk 0:02:50]} 16. g4 {[%clk 0:02:53]}  Bf4 {[%clk 0:02:46]} 17. Nxf4 {[%clk 0:02:34]}  exf4 {[%clk 0:02:47]} 18. Qxf4 {[%clk 0:02:30]}  O-O {[%clk 0:02:44]} 19. O-O-O {[%clk 0:02:29]}  Ne5 {[%clk 0:02:43]} 20. g5 {[%clk 0:02:25]}  Be6 {[%clk 0:02:42]} 21. Ne3 {[%clk 0:02:21]}  a4 {[%clk 0:02:35]} 22. Kb1 {[%clk 0:02:19]}  Rc8 {[%clk 0:02:30]} 23. h5 {[%clk 0:02:10]}  Qa5 {[%clk 0:02:06]} 24. h6 {[%clk 0:02:05]}  Ng6 {[%clk 0:01:30]} 25. Qg3 {[%clk 0:02:04]}  Qe5 {[%clk 0:01:21]} 26. Qxe5 {[%clk 0:01:51]}  dxe5 {[%clk 0:01:19]} 27. hxg7 {[%clk 0:01:42]}  Kxg7 {[%clk 0:01:20]} 28. Bh3 {[%clk 0:01:41]}  Rfd8 {[%clk 0:01:04]} 29. Bxe6 {[%clk 0:01:26]}  fxe6 {[%clk 0:01:03]} 30. b3 {[%clk 0:01:22]}  a3 {[%clk 0:00:50]} 31. Nc2 {[%clk 0:01:15]}  Nf4 {[%clk 0:00:40]} 32. Nxb4 {[%clk 0:01:08]}  Ne2 {[%clk 0:00:39]} 33. Rxd8 {[%clk 0:00:26]}  Rxd8 {[%clk 0:00:40]} 34. Kc2 {[%clk 0:00:18]}  Nd4+ {[%clk 0:00:38]} 35. Kc3 {[%clk 0:00:18]}  Ne2+ {[%clk 0:00:38]} 36. Kc2 {[%clk 0:00:19]}  Nd4+ {[%clk 0:00:39]} 37. Kc3 {[%clk 0:00:19]}  Ne2+ {[%clk 0:00:29]} 38. Kc2 {[%clk 0:00:19]} 1/2-1/2


[Site "https://www.chess.com"]

[Event "Titled Tuesday Blitz February 14 Early 2023"]
[White "Samunenkov, Ihor"]
[Black "Hammer, Jon Ludvig"]
[WhiteFideId "14187086"]
[BlackFideId "1503707"]
[WhiteElo "2501"]
[BlackElo "2636"]
[Result "1-0"]
[Round "07"]
[TimeControl "180+2"]
[Date "2023.02.15"]
[WhiteClock "0:00:12"]
[BlackClock "0:00:22"]

1. e4 {[%clk 0:03:00]}  e5 {[%clk 0:02:59]} 2. Nf3 {[%clk 0:03:01]}  Nc6 {[%clk 0:02:59]} 3. Bb5 {[%clk 0:03:01]}  Nf6 {[%clk 0:02:59]} 4. O-O {[%clk 0:03:00]}  Nxe4 {[%clk 0:02:58]} 5. Re1 {[%clk 0:03:00]}  Nd6 {[%clk 0:02:58]} 6. Nxe5 {[%clk 0:03:00]}  Be7 {[%clk 0:02:58]} 7. Bf1 {[%clk 0:03:01]}  Nxe5 {[%clk 0:02:41]} 8. Rxe5 {[%clk 0:03:02]}  O-O {[%clk 0:02:39]} 9. Nc3 {[%clk 0:03:02]}  Ne8 {[%clk 0:02:37]} 10. Nd5 {[%clk 0:03:00]}  Bd6 {[%clk 0:02:33]} 11. Re1 {[%clk 0:03:00]}  c6 {[%clk 0:02:32]} 12. Ne3 {[%clk 0:03:01]}  Bc7 {[%clk 0:02:19]} 13. c4 {[%clk 0:02:25]}  f5 {[%clk 0:01:49]} 14. c5 {[%clk 0:02:02]}  d5 {[%clk 0:01:45]} 15. cxd6 {[%clk 0:01:46]}  Nxd6 {[%clk 0:01:44]} 16. d4 {[%clk 0:01:43]}  Ne4 {[%clk 0:01:26]} 17. g3 {[%clk 0:01:11]}  f4 {[%clk 0:01:21]} 18. Ng4 {[%clk 0:01:08]}  Bxg4 {[%clk 0:00:58]} 19. Qxg4 {[%clk 0:01:07]}  Nxf2 {[%clk 0:00:49]} 20. Kxf2 {[%clk 0:00:54]}  Qxd4+ {[%clk 0:00:48]} 21. Kg2 {[%clk 0:00:52]}  Qd5+ {[%clk 0:00:25]} 22. Kh3 {[%clk 0:00:38]}  Rf6 {[%clk 0:00:24]} 23. Bxf4 {[%clk 0:00:22]}  Bxf4 {[%clk 0:00:23]} 24. gxf4 {[%clk 0:00:15]}  Rh6+ {[%clk 0:00:22]} 25. Kg3 {[%clk 0:00:16]}  Rg6 {[%clk 0:00:23]} 26. Qxg6 {[%clk 0:00:12]}  hxg6 {[%clk 0:00:23]} 27. b3 {[%clk 0:00:12]}  Rf8 {[%clk 0:00:22]} 28. Bc4 {[%clk 0:00:12]} 1-0


[Site "https://www.chess.com"]

[Event "Titled Tuesday Blitz February 14 Early 2023"]
[White "Dardha, Daniel"]
[Black "Tanenbaum, Zachary"]
[WhiteFideId "240990"]
[BlackFideId "2060850"]
[WhiteElo "2631"]
[BlackElo "2261"]
[Result "1-0"]
[Round "07"]
[TimeControl "180+2"]
[Date "2023.02.15"]
[WhiteClock "0:00:04"]
[BlackClock "0:00:02"]

1. d4 {[%clk 0:03:00]}  d5 {[%clk 0:03:00]} 2. c4 {[%clk 0:03:00]}  dxc4 {[%clk 0:03:01]} 3. e4 {[%clk 0:02:59]}  b5 {[%clk 0:03:00]} 4. a4 {[%clk 0:02:58]}  c6 {[%clk 0:03:00]} 5. b3 {[%clk 0:02:53]}  e5 {[%clk 0:03:00]} 6. axb5 {[%clk 0:02:48]}  cxb5 {[%clk 0:02:58]} 7. d5 {[%clk 0:02:48]}  Nf6 {[%clk 0:02:55]} 8. bxc4 {[%clk 0:02:19]}  b4 {[%clk 0:02:54]} 9. Bd3 {[%clk 0:02:14]}  Nbd7 {[%clk 0:02:45]} 10. Nf3 {[%clk 0:02:14]}  Bd6 {[%clk 0:02:44]} 11. O-O {[%clk 0:02:14]}  Nc5 {[%clk 0:02:44]} 12. Bg5 {[%clk 0:02:13]}  h6 {[%clk 0:02:41]} 13. Bh4 {[%clk 0:02:13]}  O-O {[%clk 0:02:39]} 14. Bc2 {[%clk 0:02:11]}  Qe7 {[%clk 0:02:37]} 15. Nbd2 {[%clk 0:02:10]}  a5 {[%clk 0:02:36]} 16. Ne1 {[%clk 0:01:47]}  Bd7 {[%clk 0:02:30]} 17. Nd3 {[%clk 0:01:46]}  Rfb8 {[%clk 0:02:21]} 18. Nxc5 {[%clk 0:01:36]}  Bxc5 {[%clk 0:02:22]} 19. Kh1 {[%clk 0:01:34]}  Bd4 {[%clk 0:02:14]} 20. Ra2 {[%clk 0:01:25]}  Qd6 {[%clk 0:01:50]} 21. f3 {[%clk 0:00:44]}  Ne8 {[%clk 0:01:41]} 22. Nb3 {[%clk 0:00:34]}  Bb6 {[%clk 0:01:40]} 23. Nc1 {[%clk 0:00:27]}  Nc7 {[%clk 0:01:40]} 24. f4 {[%clk 0:00:23]}  exf4 {[%clk 0:01:36]} 25. Nd3 {[%clk 0:00:23]}  f6 {[%clk 0:00:52]} 26. Rxf4 {[%clk 0:00:14]}  g5 {[%clk 0:00:51]} 27. Qh5 {[%clk 0:00:08]}  gxh4 {[%clk 0:00:10]} 28. Qg6+ {[%clk 0:00:07]}  Kf8 {[%clk 0:00:06]} 29. Rxf6+ {[%clk 0:00:07]}  Qxf6 {[%clk 0:00:07]} 30. Qxf6+ {[%clk 0:00:08]}  Kg8 {[%clk 0:00:06]} 31. Qg6+ {[%clk 0:00:08]}  Kh8 {[%clk 0:00:06]} 32. Qxh6+ {[%clk 0:00:06]}  Kg8 {[%clk 0:00:06]} 33. Qg6+ {[%clk 0:00:07]}  Kh8 {[%clk 0:00:07]} 34. e5 {[%clk 0:00:04]}  Rf8 {[%clk 0:00:06]} 35. Nf4 {[%clk 0:00:04]}  Bf5 {[%clk 0:00:02]} 36. Bxf5 {[%clk 0:00:04]}  Rxf5 {[%clk 0:00:03]} 37. Qh6+ {[%clk 0:00:04]}  Kg8 {[%clk 0:00:03]} 38. Qg6+ {[%clk 0:00:05]}  Kh8 {[%clk 0:00:03]} 39. Qxf5 {[%clk 0:00:06]}  Rg8 {[%clk 0:00:02]} 40. Qh5+ {[%clk 0:00:04]} 1-0


[Site "https://www.chess.com"]